Workbook

Sheet Instructions
B1: RFP# 202102021 - eProcurement Solution and Services
B2: Cost Proposal Workbook - SERVICES ONLY
B4: INSTRUCTIONS FOR COMPLETING THE COST TABS:
B5: 1. The State of Maine intends to complete a separate cost evaluation which will be used to score proposals. Bidders must provide pricing as specified on the subsequent Tabs to meet the relevant specifications and requirements of the RFP.
B6: 2. This Cost Workbook contains four (4) additional Tabs for the bidder to use to indicate all proposed costs. Tab 1: Services Only Fixed Pricing Tab 2: Services Only Price Discount Tab 3: Hourly Rate Card Pricing Tab 4: Innov, Value-Adds, Addl Svc
B7: 3. Tab 4 is optional therefore may or not award as part of the contract.
B8: 4. Part V of the RFP explains how cost/pricing will be evaluated.
B9: 5. On each Tab the bidder may add (insert) rows for additional data as needed to provide the necessary costs details of the proposal.
B10: 6. Except where otherwise noted, the bidder must not reformat any part of this Workbook as any reformatting may be cause for rejection of the proposal.
B11: 7. The bidder must note that the "Total" cells of Tab contains pre-populated formulas and may need to be edited as a result of adding/inserting rows.
B12: 8. The bidder is responsible for the accuracy of all the information provided in the Workbook.
B13: 9. The bidder must not propose any per transaction fees or administrative fees to be paid by the State or the Vendors selling goods or services to the State.

Sheet 1. Services Only Fixed Prices
B1: RFP# 202102021 - eProcurement Solution and Services
B2: Cost Proposal Workbook - SERVICES ONLY
B3: Bidder's Name: | C3: Nitor Partners LLC
B6: Instructions: The Fixed Pricing is to reflect contracting ONLY for the SERVICES to implement and support either a full eProcurement Solution OR specific Workstream requirements as identified in Sections A, E and F of the RFP for the specifically identified Scenarios on this Tab.
B7: 1. In the tables below Bidders must provide the firm, fixed prices in each yellow shaded cell that corresponds to the detail listed in each table. Bidders are to provide prices for the three identified scenarios which reflect the concepts of small, medium and large States. There are separate sets of tables for each scenario and bidders must provide complete responses for each scenario.
B8: 2. In Table A, Bidders must provide the overall pricing breakdown and labor hours of what is included to deliver a comprehensive eProcurement Solution that meets the requirements detailed in the RFP and RTM. The prices must include in total the licensing and maintenance costs, implemetation costs for deployment, and the costs for on-going operations and support of the implemented Solution. The costs in this table reflect the total Final Cost values in Tables B-D which have had the proposed discount (Tab 2) applied.
B9: 3. In Table B, Bidders must provide the total hours, costs, and discounted Final Costs as per the relevant proposed discount identifed on "Tab 2. Complete Solution Discount" for the proposed approach to implement the eProcurement Solution. It must include all associated costs to implement each workstream functionality, integations, conversion from existing State systems, staffing and support services, etc. as described in each Scenario.
B10: 4. In Table C, Bidders must provide pricing details for the proposed Managed Services to meet the requirements described in Section F of the RFP. The discounted Final Costs represents applying the relevant proposed discount from "Tab 2. Complete Solution Discount" to the Total.
B11: 5. In Table D, Bidders must document all assumptions that are reflected in the proposed Pricing. Bidders proposing services only must identify the specific eProcurement solution(s) that the proposed services costs reflect.
B13: SCENARIOs
B14: Scope Common to all Scenarios | C14: • 24 month implementation period • Suppliers managed through eProcurement Solution • State provides dedicated Project Team including Project Sponsor, Project Manager, Functional Lead, Technical Lead, SMEs, Testers, Trainers and technical staff for the state side of integration programming. • Implementation Services provided include o Integration/Interface to on-premise Finance system > PeopleSoft 9.2 > Real-time integration points to Finance - Supplier accounts, create/update (eProcurement solution is system of record) - Requisitions - Purchase Orders/Change Orders - Invoice ‘Ok to Pay’ > Batch interface points - Chart of Accounts values from Finance - Receiving to Finance o Organizational Change Management Services o Training Services > Contractor delivered End User training for 25% of scenario user count > 'Train the Trainer' training for 10 State staff > Supplier training through 20 live webinars o Help Desk Services: Full end user support, State and Supplier • Managed Services provided include o Solution Support o Additional Help Desk Services; as described above for 6 months after go-live of final solution component o On-site System Stabilization Support for 3 months after go-live of final solution component
B15: Scenario I - Large State | C15: GDP: $700 Billion Spend: $8 Billion/year Population: 11 Million State Employees: 125,000 User Count: 1,250 Buyers, 11,250 End Users Suppliers: 100,000 with 60,000 to be converted from the Finance System during implementation. Contracts: 1,000 Central Procurement Office issued, 2500 Agency issued. Data conversion of basic data from the Finance System during implementation for all Contracts. Solicitations: 2,400/year Catalogs: 1000 Hosted, 100 Punchouts with no catalogs to be converted from the Finance System during implementation. Purchase Orders: 400,000 issued/year Invoices: 600,000/year
B16: Scenario II - Medium State | C16: GDP: $300 Billion Spend: $4 Billion/year Population: 6 Million State Employees: 70,000 User Count: 700 Buyers, 6,300 End Users Suppliers: 75,000 with 50,000 to be converted from the Finance System during implementation. Contracts: 800 Central Procurement Office issued, 2000 Agency issued. Data conversion of basic data from the Finance System during implementation for all Contracts. Solicitations: 1,600/year Catalogs: 1000 Hosted, 80 Punchouts with no catalogs to be converted from the Finance System during implementation. Purchase Orders: 150,000 issued/year Invoices: 225,000/year
B17: Scenario III - Small State | C17: GDP: $100 Billion Spend: $2 Billion/year Population: 3 Million State Employees: 50,000 User Count: 500 Buyers, 4,500 End Users Suppliers: 50,000 with 35,000 to be converted from the Finance System during implementation. Contracts: 500 Central Procurement Office issued, 1500 Agency issued. Data conversion of basic data from the Finance System during implementation for all Contracts. Solicitations: 1,000/year Catalogs: 500 Hosted, 60 Punchouts with no catalogs to be converted from the Finance System during implementation. Purchase Orders: 80,000 issued/year Invoices: 105,000/year
B19: SCENARIO I - LARGE STATE PRICING | Q19: SCENARIO II - MEDIUM STATE PRICING | AF19: SCENARIO III - SMALL STATE PRICING
B21: A. Overall Cost Proposal (The all-in-costs necessary to provide an eProcurement Solution that meet the mandatory requirements of the RFP and is a total of the values in Tables B-D) | Q21: A. Overall Cost Proposal (The all-in-costs necessary to provide an eProcurement Solution that meet the mandatory requirements of the RFP and is a total of the values in Tables B-D) | AF21: A. Overall Cost Proposal (The all-in-costs necessary to provide an eProcurement Solution that meet the mandatory requirements of the RFP and is a total of the values in Tables B-D)
C22: Year 1 | D22: Year 2 | E22: Year 3 | F22: Year 4 | G22: Year 5 | H22: Year 6 | I22: Year 7 | J22: Year 8 | K22: Year 9 | L22: Year 10 | M22: Total | R22: Year 1 | S22: Year 2 | T22: Year 3 | U22: Year 4 | V22: Year 5 | W22: Year 6 | X22: Year 7 | Y22: Year 8 | Z22: Year 9 | AA22: Year 10 | AB22: Total | AG22: Year 1 | AH22: Year 2 | AI22: Year 3 | AJ22: Year 4 | AK22: Year 5 | AL22: Year 6 | AM22: Year 7 | AN22: Year 8 | AO22: Year 9 | AP22: Year 10 | AQ22: Total
B23: Solution Implementation Costs | C23: =D62*(1-'2. Services Only Discount'!$C$13) -> $4,980,132.75 | D23: =F62*(1-'2. Services Only Discount'!$C$13) -> $2,441,909.45 | M23: =SUM(C23:L23) -> $7,422,042.20 | Q23: Solution Implementation Costs | R23: =S62*(1-'2. Services Only Discount'!$C$13) -> 4482119 | S23: =U62*(1-'2. Services Only Discount'!$C$13) -> $2,197,718.41 | AB23: =SUM(R23:AA23) -> $6,679,837.89 | AF23: Solution Implementation Costs | AG23: =AH62*(1-'2. Services Only Discount'!$C$13) -> $3,984,106.20 | AH23: =AJ62*(1-'2. Services Only Discount'!$C$13) -> $1,953,527.56 | AQ23: =SUM(AG23:AP23) -> $5,937,633.76
B24: Managed Services Support Costs | C24: =C75*(1-'2. Services Only Discount'!$C$14) -> $64,505.00 | D24: =D75*(1-'2. Services Only Discount'!$C$14) -> $146,110.00 | E24: =E75*(1-'2. Services Only Discount'!$C$14) -> $146,110.00 | F24: =F75*(1-'2. Services Only Discount'!$C$14) -> 0 | G24: =G75*(1-'2. Services Only Discount'!$C$14) -> 0 | H24: =H75*(1-'2. Services Only Discount'!$C$14) -> 0 | I24: =I75*(1-'2. Services Only Discount'!$C$14) -> 0 | J24: =J75*(1-'2. Services Only Discount'!$C$14) -> 0 | K24: =K75*(1-'2. Services Only Discount'!$C$14) -> 0 | L24: =L75*(1-'2. Services Only Discount'!$C$14) -> 0 | M24: =SUM(C24:L24) -> $356,725.00 | Q24: Managed Services Support Costs | R24: =R75*(1-'2. Services Only Discount'!$C$14) -> 64505 | S24: =S75*(1-'2. Services Only Discount'!$C$14) -> $146,110.00 | T24: =T75*(1-'2. Services Only Discount'!$C$14) -> $146,110.00 | U24: =U75*(1-'2. Services Only Discount'!$C$14) -> 0 | V24: =V75*(1-'2. Services Only Discount'!$C$14) -> 0 | W24: =W75*(1-'2. Services Only Discount'!$C$14) -> 0 | X24: =X75*(1-'2. Services Only Discount'!$C$14) -> 0 | Y24: =Y75*(1-'2. Services Only Discount'!$C$14) -> 0 | Z24: =Z75*(1-'2. Services Only Discount'!$C$14) -> 0 | AA24: =AA75*(1-'2. Services Only Discount'!$C$14) -> 0 | AB24: =SUM(R24:AA24) -> $356,725.00 | AF24: Managed Services Support Costs | AG24: =AG75*(1-'2. Services Only Discount'!$C$14) -> $64,505.00 | AH24: =AH75*(1-'2. Services Only Discount'!$C$14) -> $146,110.00 | AI24: =AI75*(1-'2. Services Only Discount'!$C$14) -> $146,110.00 | AJ24: =AJ75*(1-'2. Services Only Discount'!$C$14) -> 0 | AK24: =AK75*(1-'2. Services Only Discount'!$C$14) -> 0 | AL24: =AL75*(1-'2. Services Only Discount'!$C$14) -> 0 | AM24: =AM75*(1-'2. Services Only Discount'!$C$14) -> 0 | AN24: =AN75*(1-'2. Services Only Discount'!$C$14) -> 0 | AO24: =AO75*(1-'2. Services Only Discount'!$C$14) -> 0 | AP24: =AP75*(1-'2. Services Only Discount'!$C$14) -> 0 | AQ24: =SUM(AG24:AP24) -> $356,725.00
B25: <other item for vendor input (optional)> | M25: 0 | Q25: <other item for vendor input (optional)> | AB25: 0 | AF25: <other item for vendor input (optional)> | AQ25: 0
B26: <other item for vendor input (optional)> | M26: 0 | Q26: <other item for vendor input (optional)> | AB26: 0 | AF26: <other item for vendor input (optional)> | AQ26: 0
B27: <other item for vendor input (optional)> | M27: 0 | Q27: <other item for vendor input (optional)> | AB27: 0 | AF27: <other item for vendor input (optional)> | AQ27: 0
B28: <other item for vendor input (optional)> | M28: 0 | Q28: <other item for vendor input (optional)> | AB28: 0 | AF28: <other item for vendor input (optional)> | AQ28: 0
B29: <other item for vendor input (optional)> | M29: 0 | Q29: <other item for vendor input (optional)> | AB29: 0 | AF29: <other item for vendor input (optional)> | AQ29: 0
B30: <other item for vendor input (optional)> | M30: 0 | Q30: <other item for vendor input (optional)> | AB30: 0 | AF30: <other item for vendor input (optional)> | AQ30: 0
B31: TOTAL | C31: =SUM(C23:C30) -> $5,044,637.75 | D31: $2,588,019.45 | E31: $146,110.00 | F31: 0 | G31: 0 | H31: 0 | I31: 0 | J31: 0 | K31: 0 | L31: 0 | M31: $7,778,767.20 | Q31: TOTAL | R31: =SUM(R23:R30) -> 4546624 | S31: $2,343,828.41 | T31: $146,110.00 | U31: 0 | V31: 0 | W31: 0 | X31: 0 | Y31: 0 | Z31: 0 | AA31: 0 | AB31: $7,036,562.89 | AF31: TOTAL | AG31: =SUM(AG23:AG30) -> $4,048,611.20 | AH31: $2,099,637.56 | AI31: $146,110.00 | AJ31: 0 | AK31: 0 | AL31: 0 | AM31: 0 | AN31: 0 | AO31: 0 | AP31: 0 | AQ31: $6,294,358.76
B33: B. Solution Implementation Costs - Distribute over Years 1 & 2 Note: "Final Costs" values should equal the "Total" values for Solution Implementation in Table A. | Q33: B. Solution Implementation Costs - Distribute over Years 1 & 2 Note: "Final Costs" values should equal the "Total" values for Solution Implementation in Table A. | AF33: B. Solution Implementation Costs - Distribute over Years 1 & 2 Note: "Final Costs" values should equal the "Total" values for Solution Implementation in Table A.
C34: Year 1 | E34: Year 2 | G34: Totals | R34: Year 1 | T34: Year 2 | V34: Totals | AG34: Year 1 | AI34: Year 2 | AK34: Totals
B35: Workstream Costs: | C35: Hours | D35: Costs | E35: Hours | F35: Costs | G35: Hours | H35: Costs | I35: Discount (%) | J35: Final Costs | Q35: Workstream Costs: | R35: Hours | S35: Costs | T35: Hours | U35: Costs | V35: Hours | W35: Costs | X35: Discount (%) | Y35: Final Costs | AF35: Workstream Costs: | AG35: Hours | AH35: Costs | AI35: Hours | AJ35: Costs | AK35: Hours | AL35: Costs | AM35: Discount (%) | AN35: Final Costs
B36: Supplier Portal | C36: 654 | D36: $136,906.00 | E36: 231 | F36: $108,284.00 | G36: =C36+E36 -> 885 | H36: =SUM(D36+F36) -> $245,190.00 | I36: ='2. Services Only Discount'!$C$13 -> 5.00% | J36: =(1-I36)*H36 -> $232,930.50 | Q36: Supplier Portal | R36: 588 | S36: $123,215.40 | T36: 208 | U36: $97,455.60 | V36: =R36+T36 -> 796 | W36: =SUM(S36+U36) -> $220,671.00 | X36: ='2. Services Only Discount'!$C$13 -> 5.00% | Y36: =(1-X36)*W36 -> $209,637.45 | AF36: Supplier Portal | AG36: 523 | AH36: $109,524.80 | AI36: 185 | AJ36: $86,627.20 | AK36: =AG36+AI36 -> 708 | AL36: =SUM(AH36+AJ36) -> $196,152.00 | AM36: ='2. Services Only Discount'!$C$13 -> 5.00% | AN36: =(1-AM36)*AL36 -> $186,344.40
B37: Supplier Enablement/Management | C37: 939 | D37: $196,783.00 | E37: 986 | F37: $245,690.00 | G37: 1925 | H37: $442,473.00 | I37: ='2. Services Only Discount'!$C$13 -> 5.00% | J37: =(1-I37)*H37 -> $420,349.35 | Q37: Supplier Enablement/Management | R37: 845 | S37: $177,104.70 | T37: 887 | U37: $221,121.00 | V37: 1733 | W37: $398,225.70 | X37: ='2. Services Only Discount'!$C$13 -> 5.00% | Y37: =(1-X37)*W37 -> $378,314.42 | AF37: Supplier Enablement/Management | AG37: 751 | AH37: $157,426.40 | AI37: 789 | AJ37: $196,552.00 | AK37: 1540 | AL37: $353,978.40 | AM37: ='2. Services Only Discount'!$C$13 -> 5.00% | AN37: =(1-AM37)*AL37 -> $336,279.48
B38: Buyer Portal | C38: 373 | D38: $78,233.00 | E38: 373 | F38: $280,234.00 | G38: 747 | H38: $358,467.00 | I38: ='2. Services Only Discount'!$C$13 -> 5.00% | J38: $340,543.65 | Q38: Buyer Portal | R38: 336 | S38: $70,409.70 | T38: 336 | U38: $252,210.60 | V38: 672 | W38: $322,620.30 | X38: ='2. Services Only Discount'!$C$13 -> 5.00% | Y38: $306,489.29 | AF38: Buyer Portal | AG38: 299 | AH38: $62,586.40 | AI38: 299 | AJ38: $224,187.20 | AK38: 597 | AL38: $286,773.60 | AM38: ='2. Services Only Discount'!$C$13 -> 5.00% | AN38: $272,434.92
B39: Need Identification | C39: 574 | D39: $120,342.00 | E39: 60 | F39: $84,560.00 | G39: 634 | H39: $204,902.00 | I39: ='2. Services Only Discount'!$C$13 -> 5.00% | J39: $194,656.90 | Q39: Need Identification | R39: 517 | S39: $108,307.80 | T39: 54 | U39: $76,104.00 | V39: 571 | W39: $184,411.80 | X39: ='2. Services Only Discount'!$C$13 -> 5.00% | Y39: $175,191.21 | AF39: Need Identification | AG39: 460 | AH39: $96,273.60 | AI39: 48 | AJ39: $67,648.00 | AK39: 508 | AL39: $163,921.60 | AM39: ='2. Services Only Discount'!$C$13 -> 5.00% | AN39: $155,725.52
B40: Request through Pay | C40: 4993 | D40: $1,045,929.00 | E40: 1955 | F40: $435,421.00 | G40: =C40+E40 -> 6948 | H40: $1,481,350.00 | I40: ='2. Services Only Discount'!$C$13 -> 5.00% | J40: $1,407,282.50 | Q40: Request through Pay | R40: 4493 | S40: $941,336.10 | T40: 1760 | U40: $391,878.90 | V40: 6253 | W40: $1,333,215.00 | X40: ='2. Services Only Discount'!$C$13 -> 5.00% | Y40: $1,266,554.25 | AF40: Request through Pay | AG40: 3994 | AH40: $836,743.20 | AI40: 1564 | AJ40: $348,336.80 | AK40: 5558 | AL40: $1,185,080.00 | AM40: ='2. Services Only Discount'!$C$13 -> 5.00% | AN40: $1,125,826.00
B41: Catalog Capability | C41: 407 | D41: $85,232.00 | E41: 183 | F41: $68,300.00 | G41: 590 | H41: $153,532.00 | I41: ='2. Services Only Discount'!$C$13 -> 5.00% | J41: $145,855.40 | Q41: Catalog Capability | R41: 366 | S41: $76,708.80 | T41: 165 | U41: $61,470.00 | V41: 531 | W41: $138,178.80 | X41: ='2. Services Only Discount'!$C$13 -> 5.00% | Y41: $131,269.86 | AF41: Catalog Capability | AG41: 325 | AH41: $68,185.60 | AI41: 146 | AJ41: $54,640.00 | AK41: 472 | AL41: $122,825.60 | AM41: ='2. Services Only Discount'!$C$13 -> 5.00% | AN41: $116,684.32
B42: Sourcing/Bid Management | C42: 801 | D42: $167,800.00 | E42: 0 | F42: $0.00 | G42: 801 | H42: $167,800.00 | I42: ='2. Services Only Discount'!$C$13 -> 5.00% | J42: $159,410.00 | Q42: Sourcing/Bid Management | R42: 721 | S42: $151,020.00 | T42: 0 | U42: $0.00 | V42: 721 | W42: $151,020.00 | X42: ='2. Services Only Discount'!$C$13 -> 5.00% | Y42: $143,469.00 | AF42: Sourcing/Bid Management | AG42: 641 | AH42: $134,240.00 | AI42: 0 | AJ42: $0.00 | AK42: 641 | AL42: $134,240.00 | AM42: ='2. Services Only Discount'!$C$13 -> 5.00% | AN42: $127,528.00
B43: Contract Management | C43: 949 | D43: $198,906.00 | E43: 174 | F43: $46,300.00 | G43: 1123 | H43: $245,206.00 | I43: ='2. Services Only Discount'!$C$13 -> 5.00% | J43: $232,945.70 | Q43: Contract Management | R43: 854 | S43: $179,015.40 | T43: 157 | U43: $41,670.00 | V43: 1011 | W43: $220,685.40 | X43: ='2. Services Only Discount'!$C$13 -> 5.00% | Y43: $209,651.13 | AF43: Contract Management | AG43: 760 | AH43: $159,124.80 | AI43: 139 | AJ43: $37,040.00 | AK43: 899 | AL43: $196,164.80 | AM43: ='2. Services Only Discount'!$C$13 -> 5.00% | AN43: $186,356.56
B44: Vendor Performance | C44: 777 | D44: $162,804.00 | E44: 589 | F44: $156,560.00 | G44: 1366 | H44: $319,364.00 | I44: ='2. Services Only Discount'!$C$13 -> 5.00% | J44: $303,395.80 | Q44: Vendor Performance | R44: 699 | S44: $146,523.60 | T44: 530 | U44: $140,904.00 | V44: 1229 | W44: $287,427.60 | X44: ='2. Services Only Discount'!$C$13 -> 5.00% | Y44: $273,056.22 | AF44: Vendor Performance | AG44: 622 | AH44: $130,243.20 | AI44: 471 | AJ44: $125,248.00 | AK44: 1093 | AL44: $255,491.20 | AM44: ='2. Services Only Discount'!$C$13 -> 5.00% | AN44: $242,716.64
B45: Purchasing/Data Analytics | C45: 1125 | D45: $235,680.00 | E45: 884 | F45: $284,356.00 | G45: 2009 | H45: =SUM(D45+F45) -> $520,036.00 | I45: ='2. Services Only Discount'!$C$13 -> 5.00% | J45: $494,034.20 | Q45: Purchasing/Data Analytics | R45: 1012 | S45: $212,112.00 | T45: 796 | U45: $255,920.40 | V45: 1808 | W45: =SUM(S45+U45) -> $468,032.40 | X45: ='2. Services Only Discount'!$C$13 -> 5.00% | Y45: $444,630.78 | AF45: Purchasing/Data Analytics | AG45: 900 | AH45: $188,544.00 | AI45: 707 | AJ45: $227,484.80 | AK45: 1607 | AL45: =SUM(AH45+AJ45) -> $416,028.80 | AM45: ='2. Services Only Discount'!$C$13 -> 5.00% | AN45: $395,227.36
B46: Integration to Finance System | C46: 6637 | D46: $1,390,421.00 | E46: 1110 | F46: $265,070.00 | G46: 7747 | H46: $1,655,491.00 | I46: ='2. Services Only Discount'!$C$13 -> 5.00% | J46: $1,572,716.45 | Q46: Integration to Finance System | R46: 5973 | S46: $1,251,378.90 | T46: 999 | U46: $238,563.00 | V46: 6972 | W46: $1,489,941.90 | X46: ='2. Services Only Discount'!$C$13 -> 5.00% | Y46: $1,415,444.81 | AF46: Integration to Finance System | AG46: 5309 | AH46: $1,112,336.80 | AI46: 888 | AJ46: $212,056.00 | AK46: 6197 | AL46: $1,324,392.80 | AM46: ='2. Services Only Discount'!$C$13 -> 5.00% | AN46: $1,258,173.16
B47: <other item for vendor input (optional)> | H47: 0 | I47: ='2. Services Only Discount'!$C$13 -> 5.00% | J47: 0 | Q47: <other item for vendor input (optional)> | W47: 0 | X47: ='2. Services Only Discount'!$C$13 -> 5.00% | Y47: 0 | AF47: <other item for vendor input (optional)> | AK47: 0 | AL47: 0 | AM47: ='2. Services Only Discount'!$C$13 -> 5.00% | AN47: 0
B48: <other item for vendor input (optional)> | G48: =C48+E48 -> 0 | H48: 0 | I48: ='2. Services Only Discount'!$C$13 -> 5.00% | J48: 0 | Q48: <other item for vendor input (optional)> | W48: 0 | X48: ='2. Services Only Discount'!$C$13 -> 5.00% | Y48: 0 | AF48: <other item for vendor input (optional)> | AK48: 0 | AL48: 0 | AM48: ='2. Services Only Discount'!$C$13 -> 5.00% | AN48: 0
B49: <other item for vendor input (optional)> | G49: 0 | H49: 0 | I49: ='2. Services Only Discount'!$C$13 -> 5.00% | J49: 0 | Q49: <other item for vendor input (optional)> | W49: 0 | X49: ='2. Services Only Discount'!$C$13 -> 5.00% | Y49: 0 | AF49: <other item for vendor input (optional)> | AK49: 0 | AL49: 0 | AM49: ='2. Services Only Discount'!$C$13 -> 5.00% | AN49: 0
B50: Supporting Services: | Q50: Supporting Services: | T50: 0 | U50: 0 | AF50: Supporting Services: | AG50: 0
B51: Project Initiation | C51: 411 | D51: $85,929.00 | E51: 0 | F51: $0.00 | G51: =C51+E51 -> 411 | H51: $85,929.00 | I51: ='2. Services Only Discount'!$C$13 -> 5.00% | J51: =(1-I51)*H51 -> $81,632.55 | Q51: Project Initiation | R51: 370 | S51: $77,336.10 | T51: 0 | U51: $0.00 | V51: 0 | W51: =SUM(S51+U51) -> $77,336.10 | X51: ='2. Services Only Discount'!$C$13 -> 5.00% | Y51: =(1-X51)*W51 -> $73,469.30 | AF51: Project Initiation | AG51: 329 | AH51: $68,743.20 | AI51: 0 | AJ51: $0.00 | AK51: =AG51+AI51 -> 329 | AL51: =SUM(AH51+AJ51) -> $68,743.20 | AM51: ='2. Services Only Discount'!$C$13 -> 5.00% | AN51: =(1-AM51)*AL51 -> $65,306.04
B52: Project Management | C52: 912 | D52: $190,453.00 | E52: 1057 | F52: $220,892.00 | G52: =C52+E52 -> 1969 | H52: $411,345.00 | I52: ='2. Services Only Discount'!$C$13 -> 5.00% | J52: $390,777.75 | Q52: Project Management | R52: 821 | S52: $171,407.70 | T52: 951 | U52: $198,802.80 | V52: =R52+T52 -> 1772 | W52: $370,210.50 | X52: ='2. Services Only Discount'!$C$13 -> 5.00% | Y52: $351,699.98 | AF52: Project Management | AG52: 730 | AH52: $152,362.40 | AI52: 846 | AJ52: $176,713.60 | AK52: 1575 | AL52: $329,076.00 | AM52: ='2. Services Only Discount'!$C$13 -> 5.00% | AN52: $312,622.20
B53: Change Management | C53: 3311 | D53: $692,202.00 | E53: 202 | F53: $42,410.00 | G53: =C53+E53 -> 3513 | H53: $734,612.00 | I53: ='2. Services Only Discount'!$C$13 -> 5.00% | J53: $697,881.40 | Q53: Change Management | R53: 2980 | S53: $622,981.80 | T53: 182 | U53: $38,169.00 | V53: =R53+T53 -> 3162 | W53: $661,150.80 | X53: ='2. Services Only Discount'!$C$13 -> 5.00% | Y53: $628,093.26 | AF53: Change Management | AG53: 2649 | AH53: $553,761.60 | AI53: 162 | AJ53: $33,928.00 | AK53: 2810 | AL53: $587,689.60 | AM53: ='2. Services Only Discount'!$C$13 -> 5.00% | AN53: $558,305.12
B54: Training Services | C54: 1413 | D54: $295,380.00 | E54: 790 | F54: $165,209.00 | G54: =C54+E54 -> 2203 | H54: $460,589.00 | I54: ='2. Services Only Discount'!$C$13 -> 5.00% | J54: $437,559.55 | Q54: Training Services | R54: 1272 | S54: $265,842.00 | T54: 711 | U54: $148,688.00 | V54: =R54+T54 -> 1983 | W54: $414,530.00 | X54: ='2. Services Only Discount'!$C$13 -> 5.00% | Y54: $393,803.50 | AF54: Training Services | AG54: 1130 | AH54: $236,304.00 | AI54: 632 | AJ54: $132,167.20 | AK54: 1762 | AL54: $368,471.20 | AM54: ='2. Services Only Discount'!$C$13 -> 5.00% | AN54: $350,047.64
B55: Catalog Support Services | C55: 186 | D55: $38,900.00 | E55: 224 | F55: $46,800.00 | G55: =C55+E55 -> 410 | H55: $85,700.00 | I55: ='2. Services Only Discount'!$C$13 -> 5.00% | J55: $81,415.00 | Q55: Catalog Support Services | R55: 167 | S55: $35,010.00 | T55: 202 | U55: $42,120.00 | V55: =R55+T55 -> 369 | W55: $77,130.00 | X55: ='2. Services Only Discount'!$C$13 -> 5.00% | Y55: $73,273.50 | AF55: Catalog Support Services | AG55: 149 | AH55: $31,120.00 | AI55: 179 | AJ55: $37,440.00 | AK55: 328 | AL55: $68,560.00 | AM55: ='2. Services Only Discount'!$C$13 -> 5.00% | AN55: $65,132.00
B56: Help Desk Services (Costs for period from contract award through 6 months following t'Go Live' | C56: 500 | D56: $120,345.00 | E56: 500 | F56: $120,345.00 | G56: =C56+E56 -> 1000 | H56: $240,690.00 | I56: ='2. Services Only Discount'!$C$13 -> 5.00% | J56: $228,655.50 | Q56: Help Desk Services (Costs for period from contract award through 6 months following t'Go Live' | R56: 450 | S56: $108,310.50 | T56: 450 | U56: $108,310.50 | V56: =R56+T56 -> 900 | W56: $216,621.00 | X56: ='2. Services Only Discount'!$C$13 -> 5.00% | Y56: $205,789.95 | AF56: Help Desk Services (Costs for period from contract award through 6 months following t'Go Live' | AG56: 400 | AH56: $96,276.00 | AI56: 400 | AJ56: $96,276.00 | AK56: 800 | AL56: $192,552.00 | AM56: ='2. Services Only Discount'!$C$13 -> 5.00% | AN56: $182,924.40
B57: <other item for vendor input (optional)> | G57: 0 | H57: 0 | I57: ='2. Services Only Discount'!$C$13 -> 5.00% | J57: 0 | Q57: <other item for vendor input (optional)> | W57: 0 | X57: ='2. Services Only Discount'!$C$13 -> 5.00% | Y57: 0 | AF57: <other item for vendor input (optional)> | AK57: 0 | AL57: 0 | AM57: ='2. Services Only Discount'!$C$13 -> 5.00% | AN57: 0
B58: <other item for vendor input (optional)> | G58: 0 | H58: 0 | I58: ='2. Services Only Discount'!$C$13 -> 5.00% | J58: 0 | Q58: <other item for vendor input (optional)> | W58: 0 | X58: ='2. Services Only Discount'!$C$13 -> 5.00% | Y58: 0 | AF58: <other item for vendor input (optional)> | AK58: 0 | AL58: 0 | AM58: ='2. Services Only Discount'!$C$13 -> 5.00% | AN58: 0
B59: <other item for vendor input (optional)> | G59: 0 | H59: 0 | I59: ='2. Services Only Discount'!$C$13 -> 5.00% | J59: 0 | Q59: <other item for vendor input (optional)> | W59: 0 | X59: ='2. Services Only Discount'!$C$13 -> 5.00% | Y59: 0 | AF59: <other item for vendor input (optional)> | AK59: 0 | AL59: 0 | AM59: ='2. Services Only Discount'!$C$13 -> 5.00% | AN59: 0
B60: <other item for vendor input (optional)> | G60: 0 | H60: 0 | I60: ='2. Services Only Discount'!$C$13 -> 5.00% | J60: 0 | Q60: <other item for vendor input (optional)> | W60: 0 | X60: ='2. Services Only Discount'!$C$13 -> 5.00% | Y60: 0 | AF60: <other item for vendor input (optional)> | AK60: 0 | AL60: 0 | AM60: ='2. Services Only Discount'!$C$13 -> 5.00% | AN60: 0
B61: <other item for vendor input (optional)> | G61: 0 | H61: 0 | I61: ='2. Services Only Discount'!$C$13 -> 5.00% | J61: 0 | Q61: <other item for vendor input (optional)> | W61: 0 | X61: ='2. Services Only Discount'!$C$13 -> 5.00% | Y61: 0 | AF61: <other item for vendor input (optional)> | AK61: 0 | AL61: 0 | AM61: ='2. Services Only Discount'!$C$13 -> 5.00% | AN61: 0
B62: Total | D62: =SUM(D36:D49,D51:D61) -> $5,242,245.00 | F62: =SUM(F36:F49,F51:F61) -> $2,570,431.00 | G62: 0 | H62: =SUM(H36:H49,H51:H61) -> $7,812,676.00 | I62: ='2. Services Only Discount'!$C$13 -> 5.00% | J62: =SUM(J36:J49,J51:J61) -> $7,422,042.20 | Q62: Total | S62: =SUM(S36:S49,S51:S61) -> $4,718,020.50 | U62: =SUM(U36:U49,U51:U61) -> $2,313,387.80 | W62: =SUM(W36:W49,W51:W61) -> $7,031,408.30 | X62: ='2. Services Only Discount'!$C$13 -> 5.00% | Y62: =SUM(Y36:Y49,Y51:Y61) -> $6,679,837.89 | AF62: Total | AH62: =SUM(AH36:AH49,AH51:AH61) -> $4,193,796.00 | AJ62: =SUM(AJ36:AJ49,AJ51:AJ61) -> $2,056,344.80 | AK62: 0 | AL62: =SUM(AL36:AL49,AL51:AL61) -> $6,250,140.80 | AM62: ='2. Services Only Discount'!$C$13 -> 5.00% | AN62: =SUM(AN36:AN49,AN51:AN61) -> $5,937,633.76
B64: C. Managed Services Support Costs (Note: "Total" values should equal the "Final Costs" values for Managed ServicesSupport in Table A.) | Q64: C. Managed Services Support Costs (Note: "Total" values should equal the "Final Costs" values for Managed ServicesSupport in Table A.) | AF64: C. Managed Services Support Costs (Note: "Total" values should equal the "Final Costs" values for Managed ServicesSupport in Table A.)
C65: Year 1 | D65: Year 2 | E65: Year 3 | F65: Year 4 | G65: Year 5 | H65: Year 6 | I65: Year 7 | J65: Year 8 | K65: Year 9 | L65: Year 10 | M65: Total | N65: Discount (%) | O65: Final Costs | R65: Year 1 | S65: Year 2 | T65: Year 3 | U65: Year 4 | V65: Year 5 | W65: Year 6 | X65: Year 7 | Y65: Year 8 | Z65: Year 9 | AA65: Year 10 | AB65: Total | AC65: Discount (%) | AD65: Final Costs | AG65: Year 1 | AH65: Year 2 | AI65: Year 3 | AJ65: Year 4 | AK65: Year 5 | AL65: Year 6 | AM65: Year 7 | AN65: Year 8 | AO65: Year 9 | AP65: Year 10 | AQ65: Total | AR65: Discount (%) | AS65: Final Costs
B66: On-site System Stabilization Support | D66: $85,900.00 | E66: $85,900.00 | M66: =SUM(C66:L66) -> $171,800.00 | N66: ='2. Services Only Discount'!$C$14 -> 5.00% | O66: =(1-N66)*M66 -> $163,210.00 | Q66: On-site System Stabilization Support | S66: $85,900.00 | T66: $85,900.00 | AB66: =SUM(R66:AA66) -> $171,800.00 | AC66: ='2. Services Only Discount'!$C$14 -> 5.00% | AD66: =(1-AC66)*AB66 -> $163,210.00 | AF66: On-site System Stabilization Support | AH66: $85,900.00 | AI66: $85,900.00 | AQ66: =SUM(AG66:AP66) -> $171,800.00 | AR66: ='2. Services Only Discount'!$C$14 -> 5.00% | AS66: =(1-AR66)*AQ66 -> $163,210.00
B67: Catalog Support Services | C67: $67,900.00 | D67: $67,900.00 | E67: $67,900.00 | M67: =SUM(C67:L67) -> $203,700.00 | N67: ='2. Services Only Discount'!$C$14 -> 5.00% | O67: =(1-N67)*M67 -> $193,515.00 | Q67: Catalog Support Services | R67: $67,900.00 | S67: $67,900.00 | T67: $67,900.00 | AB67: =SUM(R67:AA67) -> $203,700.00 | AC67: ='2. Services Only Discount'!$C$14 -> 5.00% | AD67: =(1-AC67)*AB67 -> $193,515.00 | AF67: Catalog Support Services | AG67: $67,900.00 | AH67: $67,900.00 | AI67: $67,900.00 | AQ67: =SUM(AG67:AP67) -> $203,700.00 | AR67: ='2. Services Only Discount'!$C$14 -> 5.00% | AS67: =(1-AR67)*AQ67 -> $193,515.00
B68: Third Party Licensing (e.g. NIGP Codes) | M68: =SUM(C68:L68) -> 0 | N68: ='2. Services Only Discount'!$C$14 -> 5.00% | O68: 0 | Q68: Third Party Licensing (e.g. NIGP Codes) | AB68: =SUM(R68:AA68) -> 0 | AC68: ='2. Services Only Discount'!$C$14 -> 5.00% | AD68: 0 | AF68: Third Party Licensing (e.g. NIGP Codes) | AQ68: =SUM(AG68:AP68) -> 0 | AR68: ='2. Services Only Discount'!$C$14 -> 5.00% | AS68: 0
B69: Transition Out Assistance Services | C69: $0.00 | D69: $0.00 | E69: $0.00 | M69: 0 | N69: ='2. Services Only Discount'!$C$14 -> 5.00% | O69: 0 | Q69: Transition Out Assistance Services | R69: $0.00 | S69: $0.00 | T69: $0.00 | AB69: 0 | AC69: ='2. Services Only Discount'!$C$14 -> 5.00% | AD69: 0 | AF69: Transition Out Assistance Services | AG69: $0.00 | AH69: $0.00 | AI69: $0.00 | AQ69: 0 | AR69: ='2. Services Only Discount'!$C$14 -> 5.00% | AS69: 0
B70: <other item for vendor input (optional)> | M70: 0 | N70: ='2. Services Only Discount'!$C$14 -> 5.00% | O70: 0 | Q70: <other item for vendor input (optional)> | AB70: 0 | AC70: ='2. Services Only Discount'!$C$14 -> 5.00% | AD70: 0 | AF70: <other item for vendor input (optional)> | AQ70: 0 | AR70: ='2. Services Only Discount'!$C$14 -> 5.00% | AS70: 0
B71: <other item for vendor input (optional)> | M71: 0 | N71: ='2. Services Only Discount'!$C$14 -> 5.00% | O71: 0 | Q71: <other item for vendor input (optional)> | AB71: 0 | AC71: ='2. Services Only Discount'!$C$14 -> 5.00% | AD71: 0 | AF71: <other item for vendor input (optional)> | AQ71: 0 | AR71: ='2. Services Only Discount'!$C$14 -> 5.00% | AS71: 0
B72: <other item for vendor input (optional)> | M72: 0 | N72: ='2. Services Only Discount'!$C$14 -> 5.00% | O72: 0 | Q72: <other item for vendor input (optional)> | AB72: 0 | AC72: ='2. Services Only Discount'!$C$14 -> 5.00% | AD72: 0 | AF72: <other item for vendor input (optional)> | AQ72: 0 | AR72: ='2. Services Only Discount'!$C$14 -> 5.00% | AS72: 0
B73: <other item for vendor input (optional)> | M73: 0 | N73: ='2. Services Only Discount'!$C$14 -> 5.00% | O73: 0 | Q73: <other item for vendor input (optional)> | AB73: 0 | AC73: ='2. Services Only Discount'!$C$14 -> 5.00% | AD73: 0 | AF73: <other item for vendor input (optional)> | AQ73: 0 | AR73: ='2. Services Only Discount'!$C$14 -> 5.00% | AS73: 0
B74: <other item for vendor input (optional)> | M74: 0 | N74: ='2. Services Only Discount'!$C$14 -> 5.00% | O74: 0 | Q74: <other item for vendor input (optional)> | AB74: 0 | AC74: ='2. Services Only Discount'!$C$14 -> 5.00% | AD74: 0 | AF74: <other item for vendor input (optional)> | AQ74: 0 | AR74: ='2. Services Only Discount'!$C$14 -> 5.00% | AS74: 0
B75: TOTAL | C75: =SUM(C66:C74) -> $67,900.00 | D75: $153,800.00 | E75: $153,800.00 | F75: 0 | G75: 0 | H75: 0 | I75: 0 | J75: 0 | K75: 0 | L75: 0 | M75: $375,500.00 | N75: ='2. Services Only Discount'!$C$14 -> 5.00% | O75: =SUM(O66:O74) -> $356,725.00 | Q75: TOTAL | R75: =SUM(R66:R74) -> 67900 | S75: $153,800.00 | T75: $153,800.00 | U75: 0 | V75: 0 | W75: 0 | X75: 0 | Y75: 0 | Z75: 0 | AA75: 0 | AB75: $375,500.00 | AC75: ='2. Services Only Discount'!$C$14 -> 5.00% | AD75: =SUM(AD66:AD74) -> $356,725.00 | AF75: TOTAL | AG75: =SUM(AG66:AG74) -> $67,900.00 | AH75: $153,800.00 | AI75: $153,800.00 | AJ75: 0 | AK75: 0 | AL75: 0 | AM75: 0 | AN75: 0 | AO75: 0 | AP75: 0 | AQ75: $375,500.00 | AR75: ='2. Services Only Discount'!$C$14 -> 5.00% | AS75: =SUM(AS66:AS74) -> $356,725.00
B77: *D. Assumptions | Q77: *D. Assumptions | AF77: *D. Assumptions
B78: Cost includes Discounted
B79: Does not include travel & entertainment
B80: Not to execeed 15 interfaces with Financial System (ERP)
B81: Integrations with other inhouse systems (HR Systems, inventory systems) and external systems (like DocuSign, B2GNow, Tealbook) are not included here.
B84: <insert rows for additional Assumptions> | Q84: <insert rows for additional Assumptions> | AF84: <insert rows for additional Assumptions>

Sheet 2. Services Only Discount
B1: RFP# 202102021 - eProcurement Solution and Services
B2: Cost Proposal Workbook - SERVICES ONLY
B3: Bidder's Name: | C3: Nitor Partners LLC
B6: Instructions: The Discount is to reflect contracting ONLY for the SERVICES to implement and support either a full eProcurement Solution OR specific Workstream requirements as identified in Sections A, E and F of the RFP
B7: 1. In Table A, Bidders must provide a minimum discount percentages off the Bidder's commercially published price list for all current and future services that will be available through award of a contract from this RFP. Bidders will not be precluded from providing deeper or additional discounts at their sole discretion at the time they enter into an agreement with a Participating Entity from the Contract that results from this RFP.
B8: 2. In Table B, Bidders must document all assumptions that are reflected in the proposed Pricing. Bidders proposing services only must identify the specific eProcurement solution(s) that the proposed services discount reflect.
B11: A. Minimum Discount Percentage
C12: Discount (%)
B13: Solution Implementation Services | C13: 5.00%
B14: Managed Services Support | C14: 5.00%
B17: B. Assumptions
B26: <insert rows for additional Assumptions>

Sheet 3. Hourly Rate Card Pricing
B1: RFP# 202102021 - eProcurement Solution and Services
B2: Cost Proposal Workbook - SERVICES ONLY
B3: Bidder's Name: | C3: Nitor Partners LLC
B5: Hourly Rate Card Pricing
B6: Instructions:
B7: 1. In Table A, Bidders must provide a minimum discount percentage off that will be applied the Bidder's commercially published Hourly Rate Card price list. Bidders will not be precluded from providing deeper or additional discounts at their sole discretion at the time they enter into an agreement with a Participating Entity from the Contract that results from this RFP. Awarded Contractors will have the opportunity to update and refresh their respective Rate Card price list annually.
B8: 2. In Table B, Bidders must provide their commercially published Hourly Rate Card price list that will be available through award of a contract from this RFP for services that may be provided on an as needed, if needed basis. There is no guaranteed minimum or maximum amount of the contractor’s services that may be required under the contract. Hourly Rate Card pricing shall include all travel expenses. Bidders must utilize the pre-listed Personnel Classifications where appropriate but should indicate "N/A" in Year 1 when the specific classification is not provided by the Bidder. Any other personnel classifications available should be added as well. In the associated blue cell, Bidders must provide a detailed description detailing the role and skills of the classification. In the yellow cells, the bidder must provide the hourly rate for the Personnel Classification identified in the adjoining blue cell.
B9: 3. In Table C, the Discounted Hourly Rates for each identified Personnel Classification will be calculated based on the Discount identified in Table A and the associated rates in Table B.
B10: 4. In Table D, Bidders must document any specific assumptions associated with the listed Personnel Classifications and associated Rate Card pricing.
B12: A. Minimum Discount Percentage
D13: Discount (%)
B14: Rate Card Discount | D14: 10.00%
B16: B. Price List Rate Card by Personnel Classification | O16: C. Discounted Price List Rate Card by Personnel Classification
D17: List Price - Hourly Rate | O17: Discounted Hourly Rate
B18: Personnel Classification | C18: Classification Description | D18: Year 1 | E18: Year 2 | F18: Year 3 | G18: Year 4 | H18: Year 5 | I18: Year 6 | J18: Year 7 | K18: Year 8 | L18: Year 9 | M18: Year 10 | O18: Year 1 | P18: Year 2 | Q18: Year 3 | R18: Year 4 | S18: Year 5 | T18: Year 6 | U18: Year 7 | V18: Year 8 | W18: Year 9 | X18: Year 10
B20: Management/Leadership
B21: Senior Executive | D21: $425.00 | E21: $425.00 | F21: $425.00 | G21: $445.00 | H21: $445.00 | I21: $445.00 | J21: $445.00 | K21: $460.00 | L21: $460.00 | M21: $460.00 | O21: =D21*(1-$D$14) -> $382.50 | P21: =E21*(1-$D$14) -> $382.50 | Q21: =F21*(1-$D$14) -> $382.50 | R21: =G21*(1-$D$14) -> $400.50 | S21: =H21*(1-$D$14) -> $400.50 | T21: =I21*(1-$D$14) -> $400.50 | U21: =J21*(1-$D$14) -> $400.50 | V21: =K21*(1-$D$14) -> $414.00 | W21: =L21*(1-$D$14) -> $414.00 | X21: =M21*(1-$D$14) -> $414.00
B22: Program Manager/Unit Lead | D22: $375.00 | E22: $376.00 | F22: $377.00 | G22: $390.00 | H22: $390.00 | I22: $390.00 | J22: $390.00 | K22: $405.00 | L22: $405.00 | M22: $405.00 | O22: =D22*(1-$D$14) -> $337.50 | P22: $338.40 | Q22: $339.30 | R22: $351.00 | S22: $351.00 | T22: $351.00 | U22: $351.00 | V22: $364.50 | W22: $364.50 | X22: $364.50
B23: Technical Architect/SME | D23: $300.00 | E23: $300.00 | F23: $300.00 | G23: $320.00 | H23: $320.00 | I23: $320.00 | J23: $320.00 | K23: $340.00 | L23: $340.00 | M23: $340.00 | O23: $270.00 | P23: $270.00 | Q23: $270.00 | R23: $288.00 | S23: $288.00 | T23: $288.00 | U23: $288.00 | V23: $306.00 | W23: $306.00 | X23: $306.00
B24: Project Manager | D24: $300.00 | E24: $300.00 | F24: $300.00 | G24: $320.00 | H24: $320.00 | I24: $320.00 | J24: $320.00 | K24: $340.00 | L24: $340.00 | M24: $340.00 | O24: $270.00 | P24: $270.00 | Q24: $270.00 | R24: $288.00 | S24: $288.00 | T24: $288.00 | U24: $288.00 | V24: $306.00 | W24: $306.00 | X24: $306.00
B25: Operations Lead Manager | D25: $325.00 | E25: $325.00 | F25: $325.00 | G25: $345.00 | H25: $345.00 | I25: $345.00 | J25: $345.00 | K25: $365.00 | L25: $365.00 | M25: $365.00 | O25: $292.50 | P25: $292.50 | Q25: $292.50 | R25: $310.50 | S25: $310.50 | T25: $310.50 | U25: $310.50 | V25: $328.50 | W25: $328.50 | X25: $328.50
B26: Functional Lead/Manager | D26: $260.00 | E26: $260.00 | F26: $260.00 | G26: $290.00 | H26: $290.00 | I26: $290.00 | J26: $290.00 | K26: $305.00 | L26: $305.00 | M26: $305.00 | O26: $234.00 | P26: $234.00 | Q26: $234.00 | R26: $261.00 | S26: $261.00 | T26: $261.00 | U26: $261.00 | V26: $274.50 | W26: $274.50 | X26: $274.50
B27: <other item for vendor input (optional)> | O27: 0 | P27: 0 | Q27: 0 | R27: 0 | S27: 0 | T27: 0 | U27: 0 | V27: 0 | W27: 0 | X27: 0
B28: Change Management
B29: Change Management Lead | D29: $300.00 | E29: $300.00 | F29: $300.00 | G29: $320.00 | H29: $320.00 | I29: $320.00 | J29: $320.00 | K29: $340.00 | L29: $340.00 | M29: $340.00 | O29: =D29*(1-$D$14) -> $270.00 | P29: =E29*(1-$D$14) -> $270.00 | Q29: =F29*(1-$D$14) -> $270.00 | R29: =G29*(1-$D$14) -> $288.00 | S29: =H29*(1-$D$14) -> $288.00 | T29: =I29*(1-$D$14) -> $288.00 | U29: =J29*(1-$D$14) -> $288.00 | V29: =K29*(1-$D$14) -> $306.00 | W29: =L29*(1-$D$14) -> $306.00 | X29: =M29*(1-$D$14) -> $306.00
B30: Process Change Analyst | D30: $290.00 | E30: $290.00 | F30: $290.00 | G30: $315.00 | H30: $315.00 | I30: $315.00 | J30: $315.00 | K30: $335.00 | L30: $335.00 | M30: $335.00 | O30: $261.00 | P30: $261.00 | Q30: $261.00 | R30: $283.50 | S30: $283.50 | T30: $283.50 | U30: $283.50 | V30: $301.50 | W30: $301.50 | X30: $301.50
B31: Communications/Change Mgmt. SME | D31: $200.00 | E31: $200.00 | F31: $200.00 | G31: $225.00 | H31: $225.00 | I31: $225.00 | J31: $225.00 | K31: $245.00 | L31: $245.00 | M31: $245.00 | O31: $180.00 | P31: $180.00 | Q31: $180.00 | R31: $202.50 | S31: $202.50 | T31: $202.50 | U31: $202.50 | V31: $220.50 | W31: $220.50 | X31: $220.50
B32: Training Lead/Manager | D32: $180.00 | E32: $180.00 | F32: $180.00 | G32: $195.00 | H32: $195.00 | I32: $195.00 | J32: $195.00 | K32: $210.00 | L32: $210.00 | M32: $210.00 | O32: $162.00 | P32: $162.00 | Q32: $162.00 | R32: $175.50 | S32: $175.50 | T32: $175.50 | U32: $175.50 | V32: $189.00 | W32: $189.00 | X32: $189.00
B33: Training Delivery Consultant | D33: $180.00 | E33: $180.00 | F33: $180.00 | G33: $195.00 | H33: $195.00 | I33: $195.00 | J33: $195.00 | K33: $210.00 | L33: $210.00 | M33: $210.00 | O33: $162.00 | P33: $162.00 | Q33: $162.00 | R33: $175.50 | S33: $175.50 | T33: $175.50 | U33: $175.50 | V33: $189.00 | W33: $189.00 | X33: $189.00
B34: <other item for vendor input (optional)> | O34: 0 | P34: 0 | Q34: 0 | R34: 0 | S34: 0 | T34: 0 | U34: 0 | V34: 0 | W34: 0 | X34: 0
B35: Specialist/Support
B36: Business Analyst | D36: $175.00 | E36: $175.00 | F36: $175.00 | G36: $192.00 | H36: $192.00 | I36: $192.00 | J36: $192.00 | K36: $210.00 | L36: $210.00 | M36: $210.00 | O36: =D36*(1-$D$14) -> $157.50 | P36: =E36*(1-$D$14) -> $157.50 | Q36: =F36*(1-$D$14) -> $157.50 | R36: =G36*(1-$D$14) -> $172.80 | S36: =H36*(1-$D$14) -> $172.80 | T36: =I36*(1-$D$14) -> $172.80 | U36: =J36*(1-$D$14) -> $172.80 | V36: =K36*(1-$D$14) -> $189.00 | W36: =L36*(1-$D$14) -> $189.00 | X36: =M36*(1-$D$14) -> $189.00
B37: Strategic Sourcing Analyst | D37: $175.00 | E37: $175.00 | F37: $175.00 | G37: $192.00 | H37: $192.00 | I37: $192.00 | J37: $192.00 | K37: $210.00 | L37: $210.00 | M37: $210.00 | O37: $157.50 | P37: $157.50 | Q37: $157.50 | R37: $172.80 | S37: $172.80 | T37: $172.80 | U37: $172.80 | V37: $189.00 | W37: $189.00 | X37: $189.00
B38: Technical Architect | D38: $260.00 | E38: $260.00 | F38: $260.00 | G38: $290.00 | H38: $290.00 | I38: $290.00 | J38: $290.00 | K38: $305.00 | L38: $305.00 | M38: $305.00 | O38: $234.00 | P38: $234.00 | Q38: $234.00 | R38: $261.00 | S38: $261.00 | T38: $261.00 | U38: $261.00 | V38: $274.50 | W38: $274.50 | X38: $274.50
B39: Programmer/Developer | D39: $260.00 | E39: $260.00 | F39: $260.00 | G39: $290.00 | H39: $290.00 | I39: $290.00 | J39: $290.00 | K39: $305.00 | L39: $305.00 | M39: $305.00 | O39: $234.00 | P39: $234.00 | Q39: $234.00 | R39: $261.00 | S39: $261.00 | T39: $261.00 | U39: $261.00 | V39: $274.50 | W39: $274.50 | X39: $274.50
B40: Jr Programmer/Developer | D40: $210.00 | E40: $210.00 | F40: $210.00 | G40: $230.00 | H40: $230.00 | I40: $230.00 | J40: $230.00 | K40: $245.00 | L40: $245.00 | M40: $245.00 | O40: $189.00 | P40: $189.00 | Q40: $189.00 | R40: $207.00 | S40: $207.00 | T40: $207.00 | U40: $207.00 | V40: $220.50 | W40: $220.50 | X40: $220.50
B41: Security Specialist | D41: $210.00 | E41: $210.00 | F41: $210.00 | G41: $230.00 | H41: $230.00 | I41: $230.00 | J41: $230.00 | K41: $245.00 | L41: $245.00 | M41: $245.00 | O41: $189.00 | P41: $189.00 | Q41: $189.00 | R41: $207.00 | S41: $207.00 | T41: $207.00 | U41: $207.00 | V41: $220.50 | W41: $220.50 | X41: $220.50
B42: Security Administrator | D42: $250.00 | E42: $250.00 | F42: $250.00 | G42: $275.00 | H42: $275.00 | I42: $275.00 | J42: $275.00 | K42: $295.00 | L42: $295.00 | M42: $295.00 | O42: $225.00 | P42: $225.00 | Q42: $225.00 | R42: $247.50 | S42: $247.50 | T42: $247.50 | U42: $247.50 | V42: $265.50 | W42: $265.50 | X42: $265.50
B43: System Analyst | D43: $210.00 | E43: $210.00 | F43: $210.00 | G43: $230.00 | H43: $230.00 | I43: $230.00 | J43: $230.00 | K43: $248.00 | L43: $248.00 | M43: $248.00 | O43: $189.00 | P43: $189.00 | Q43: $189.00 | R43: $207.00 | S43: $207.00 | T43: $207.00 | U43: $207.00 | V43: $223.20 | W43: $223.20 | X43: $223.20
B44: Performance Expert | D44: $210.00 | E44: $210.00 | F44: $210.00 | G44: $230.00 | H44: $230.00 | I44: $230.00 | J44: $230.00 | K44: $248.00 | L44: $248.00 | M44: $248.00 | O44: $189.00 | P44: $189.00 | Q44: $189.00 | R44: $207.00 | S44: $207.00 | T44: $207.00 | U44: $207.00 | V44: $223.20 | W44: $223.20 | X44: $223.20
B45: Quality Assurance Manager | D45: $245.00 | E45: $245.00 | F45: $245.00 | G45: $260.00 | H45: $260.00 | I45: $260.00 | J45: $260.00 | K45: $280.00 | L45: $280.00 | M45: $280.00 | O45: $220.50 | P45: $220.50 | Q45: $220.50 | R45: $234.00 | S45: $234.00 | T45: $234.00 | U45: $234.00 | V45: $252.00 | W45: $252.00 | X45: $252.00
B46: Technical Writer | D46: $185.00 | E46: $185.00 | F46: $185.00 | G46: $205.00 | H46: $205.00 | I46: $205.00 | J46: $205.00 | K46: $225.00 | L46: $225.00 | M46: $225.00 | O46: $166.50 | P46: $166.50 | Q46: $166.50 | R46: $184.50 | S46: $184.50 | T46: $184.50 | U46: $184.50 | V46: $202.50 | W46: $202.50 | X46: $202.50
B47: Test Lead/Manager | D47: $245.00 | E47: $245.00 | F47: $245.00 | G47: $268.00 | H47: $268.00 | I47: $268.00 | J47: $268.00 | K47: $285.00 | L47: $285.00 | M47: $285.00 | O47: $220.50 | P47: $220.50 | Q47: $220.50 | R47: $241.20 | S47: $241.20 | T47: $241.20 | U47: $241.20 | V47: $256.50 | W47: $256.50 | X47: $256.50
B48: Tester | D48: $195.00 | E48: $195.00 | F48: $195.00 | G48: $210.00 | H48: $210.00 | I48: $210.00 | J48: $210.00 | K48: $230.00 | L48: $230.00 | M48: $230.00 | O48: $175.50 | P48: $175.50 | Q48: $175.50 | R48: $189.00 | S48: $189.00 | T48: $189.00 | U48: $189.00 | V48: $207.00 | W48: $207.00 | X48: $207.00
B49: Help Desk Process Expert | D49: $195.00 | E49: $195.00 | F49: $195.00 | G49: $210.00 | H49: $210.00 | I49: $210.00 | J49: $210.00 | K49: $230.00 | L49: $230.00 | M49: $230.00 | O49: $175.50 | P49: $175.50 | Q49: $175.50 | R49: $189.00 | S49: $189.00 | T49: $189.00 | U49: $189.00 | V49: $207.00 | W49: $207.00 | X49: $207.00
B50: Help Desk Process Analyst | D50: $170.00 | E50: $170.00 | F50: $170.00 | G50: $187.00 | H50: $187.00 | I50: $187.00 | J50: $187.00 | K50: $202.00 | L50: $202.00 | M50: $202.00 | O50: =D50*(1-$D$14) -> $153.00 | P50: =E50*(1-$D$14) -> $153.00 | Q50: $153.00 | R50: $168.30 | S50: $168.30 | T50: $168.30 | U50: $168.30 | V50: $181.80 | W50: $181.80 | X50: $181.80
B51: <other item for vendor input (optional)>
B52: Other Resources (Specify)
B53: <other item for vendor input (optional)> | O53: =D53*(1-$D$14) -> 0 | P53: =E53*(1-$D$14) -> 0 | Q53: =F53*(1-$D$14) -> 0 | R53: =G53*(1-$D$14) -> 0 | S53: =H53*(1-$D$14) -> 0 | T53: =I53*(1-$D$14) -> 0 | U53: =J53*(1-$D$14) -> 0 | V53: =K53*(1-$D$14) -> 0 | W53: =L53*(1-$D$14) -> 0 | X53: =M53*(1-$D$14) -> 0
B54: <other item for vendor input (optional)> | O54: 0 | P54: 0 | Q54: 0 | R54: 0 | S54: 0 | T54: 0 | U54: 0 | V54: 0 | W54: 0 | X54: 0
B55: <other item for vendor input (optional)> | O55: 0 | P55: 0 | Q55: 0 | R55: 0 | S55: 0 | T55: 0 | U55: 0 | V55: 0 | W55: 0 | X55: 0
B56: <other item for vendor input (optional)> | O56: 0 | P56: 0 | Q56: 0 | R56: 0 | S56: 0 | T56: 0 | U56: 0 | V56: 0 | W56: 0 | X56: 0
B57: <other item for vendor input (optional)> | O57: 0 | P57: 0 | Q57: 0 | R57: 0 | S57: 0 | T57: 0 | U57: 0 | V57: 0 | W57: 0 | X57: 0
B58: <other item for vendor input (optional)> | O58: 0 | P58: 0 | Q58: 0 | R58: 0 | S58: 0 | T58: 0 | U58: 0 | V58: 0 | W58: 0 | X58: 0
B60: D. Assumptions
B69: <insert rows for additional Assumptions>

Sheet 4. Innov, Value-Adds, Addl Svc
B1: RFP# 202102021 - eProcurement Solution and Services
B2: Cost Proposal Workbook - SERVICES ONLY
B3: Bidder's Name: | C3: Nitor Partners, LLC
B5: OPTIONAL: Innovations, Value-Added Services, Additional Services (Reference RFP Sections A.4 and G)
B6: Instructions:
B7: In the table below, in the blue cells, the bidder must provide the name/title along with detail list of proposed innovations, value-added services and additional services as described in Sections A.4 and G of the RFP. In the yellow cells, the bidder must provide the firm, fixed prices for the corresponding item. Bidders must use the Assumptions table below to document any specific assumptions associated with each listed Innovation, Value-Added Service and Additional Service.
C10: Year 1 | D10: Year 2 | E10: Year 3 | F10: Year 4 | G10: Year 5 | H10: Year 6 | I10: Year 7 | J10: Year 8 | K10: Year 9 | L10: Year 10 | M10: Total
B11: <Specify Name/Title>
B12: Invoice Channel Analysis | C12: $0.00 | D12: $0.00 | M12: =SUM(C12:L12) -> 0
B13: Working Capital Assessment | C13: $0 | D13: $0 | E13: $22,000 | F13: $25,000 | G13: $25,000 | H13: $25,000 | I13: $30,000 | J13: $30,000 | K13: $30,000 | L13: $30,000 | M13: =SUM(C13:L13) -> $217,000.00
B14: Contract Migration Services | C14: $18 | D14: $18.00 | E14: $18.00 | F14: $20.00 | G14: $20.00 | H14: $20.00 | I14: $22.00 | J14: $22.00 | K14: $22.00 | L14: $22.00 | M14: $202.00
B15: Relish Data Assure | C15: $40,000.00 | D15: $40,000.00 | E15: $40,000.00 | F15: $42,000.00 | G15: $42,000.00 | H15: $42,000.00 | I15: $45,000.00 | J15: $45,000.00 | K15: $45,000.00 | L15: $45,000.00 | M15: $426,000.00
B16: Relish InvoiceAI | C16: $98,000.00 | D16: $98,000.00 | E16: $98,000.00 | F16: $101,000.00 | G16: $101,000.00 | H16: $101,000.00 | I16: $105,000.00 | J16: $105,000.00 | K16: $105,000.00 | L16: $105,000.00 | M16: $1,017,000.00
B17: Relish Transparency Portal | C17: $235,000 | D17: $235,000 | E17: $235,000 | F17: $245,000.00 | G17: $245,000.00 | H17: $245,000.00 | I17: $250,000.00 | J17: $250,000.00 | K17: $250,000.00 | L17: $250,000.00 | M17: $2,440,000.00
B18: Self Funding Portal | C18: $500,000 | D18: $500,000 | E18: $500,000 | F18: $500,000.00 | G18: $500,000.00 | H18: $500,000.00 | I18: $500,000.00 | J18: $500,000.00 | K18: $500,000.00 | L18: $500,000.00 | M18: $5,000,000.00
B19: Event Management Services | C19: $0.00
B21: TOTAL | C21: =SUM(C12:C19) -> $873,018.00 | D21: =SUM(D12:D19) -> $873,018.00 | E21: $895,018.00 | F21: $913,020.00 | G21: $913,020.00 | H21: $913,020.00 | I21: $930,022.00 | J21: $930,022.00 | K21: $930,022.00 | L21: $930,022.00 | M21: $9,100,202.00
B23: Assumptions
B24: Relish Data Assure - US Bundle with 4 standard connections. Upto 10K unique calls per year.
B25: Relish Invoice AI - Upto 50K invoices per year or 4200 invoices per month
B26: Relish Self funding Portal - 5k per month and 5% of collections up to 5M collections (500k). Assumption entity collects or could collect 5M or more.
B27: Contract Migration Services - Cost mentioned here is cost per contract to be migrated from legacy system including contract scanning & making it fully searchable PDFs.
B28: Working captial assessment and Invoice Channel Analysis fees for first 2 years is $0.00 and only available if Nitor is implemeting complete Source 2 Pay platform (like SAP Ariba, Coupa or Ivalua) for the participatin entity.
B29: Event Management Services is limited to 5 sourcing events of max of 3 months post Sourcing module go live.
B30: Contract Migration Services requires Nitor to Implement Contract modules and P2P modules of S2P modules
B32: <insert rows for additional Assumptions>
